[Event "*** Titled Tuesday Blitz"]
[Site "Chess.com"]
[Date "2020.12.01"]
[Round "1"]
[White "dpopadic"]
[Black "SergeiAza"]
[Result "0-1"]
[WhiteElo "2407"]
[BlackElo "2829"]
[TimeControl "180+1"]
[EndTime "10:08:53 PST"]
[Termination "SergeiAza won on time"]

1. e4 {[%clk 0:03:00.9]} 1... c5 {[%clk 0:02:58.7]} 2. Nc3 {[%clk 0:03:00.4]}
2... Nc6 {[%clk 0:02:58.4]} 3. f4 {[%clk 0:03:00.2]} 3... a6 {[%clk 0:02:48.2]}
4. a4 {[%clk 0:02:58.6]} 4... e6 {[%clk 0:02:46]} 5. Nf3 {[%clk 0:02:58.6]} 5...
d5 {[%clk 0:02:45.8]} 6. d3 {[%clk 0:02:57.3]} 6... Nf6 {[%clk 0:02:30.8]} 7. e5
{[%clk 0:02:56.6]} 7... Ng4 {[%clk 0:02:28.8]} 8. Be2 {[%clk 0:02:51.8]} 8...
Be7 {[%clk 0:02:21.4]} 9. O-O {[%clk 0:02:50.9]} 9... O-O {[%clk 0:02:21.5]} 10.
Qe1 {[%clk 0:02:50.1]} 10... f5 {[%clk 0:02:11.5]} 11. h3 {[%clk 0:02:35.7]}
11... Nh6 {[%clk 0:02:03.4]} 12. Kh1 {[%clk 0:02:34.6]} 12... b6 {[%clk
0:02:02.7]} 13. Bd2 {[%clk 0:02:30.4]} 13... Bb7 {[%clk 0:02:02.7]} 14. Qf2
{[%clk 0:02:29.8]} 14... Nb4 {[%clk 0:01:51.4]} 15. Bd1 {[%clk 0:02:27.4]} 15...
d4 {[%clk 0:01:45.3]} 16. Ne2 {[%clk 0:02:22.8]} 16... Nd5 {[%clk 0:01:45.4]}
17. c4 {[%clk 0:02:14.7]} 17... dxc3 {[%clk 0:01:40.7]} 18. bxc3 {[%clk
0:02:14.7]} 18... Kh8 {[%clk 0:01:30.7]} 19. Bc2 {[%clk 0:02:13.9]} 19... Rc8
{[%clk 0:01:29.2]} 20. Rab1 {[%clk 0:02:11.5]} 20... a5 {[%clk 0:01:24.7]} 21.
Rfd1 {[%clk 0:02:01.1]} 21... Nf7 {[%clk 0:01:19.9]} 22. Bc1 {[%clk 0:01:53.1]}
22... g5 {[%clk 0:01:18.1]} 23. fxg5 {[%clk 0:01:50.5]} 23... Nxg5 {[%clk
0:01:17.8]} 24. Nxg5 {[%clk 0:01:47.1]} 24... Bxg5 {[%clk 0:01:17.6]} 25. Bxg5
{[%clk 0:01:18.5]} 25... Qxg5 {[%clk 0:01:18.5]} 26. c4 {[%clk 0:01:17.6]} 26...
Nb4 {[%clk 0:01:18.1]} 27. Rbc1 {[%clk 0:01:11.9]} 27... Rg8 {[%clk 0:01:10.4]}
28. Nf4 {[%clk 0:01:09.6]} 28... Rcd8 {[%clk 0:01:06]} 29. Rg1 {[%clk
0:00:59.7]} 29... Rd4 {[%clk 0:00:58.9]} 30. Nxe6 {[%clk 0:00:58.1]} 30... Qh6
{[%clk 0:00:58.7]} 31. Qxf5 {[%clk 0:00:36.5]} 31... Bc8 {[%clk 0:00:28.5]} 32.
Nxd4 {[%clk 0:00:28]} 32... Bxf5 {[%clk 0:00:28]} 33. Nxf5 {[%clk 0:00:28.1]}
33... Qd2 {[%clk 0:00:22.7]} 34. Bb1 {[%clk 0:00:22.5]} 34... Rxg2 {[%clk
0:00:16.8]} 35. Rxg2 {[%clk 0:00:22.7]} 35... Qxc1+ {[%clk 0:00:16.9]} 36. Rg1
{[%clk 0:00:23.4]} 36... Qf4 {[%clk 0:00:16.6]} 37. Nd6 {[%clk 0:00:21.4]} 37...
Qf3+ {[%clk 0:00:13.7]} 38. Kh2 {[%clk 0:00:20.4]} 38... h5 {[%clk 0:00:12.6]}
39. Rg3 {[%clk 0:00:17.7]} 39... Qf2+ {[%clk 0:00:12.2]} 40. Rg2 {[%clk
0:00:17.4]} 40... Qf4+ {[%clk 0:00:12]} 41. Kh1 {[%clk 0:00:17.5]} 41... Nc6
{[%clk 0:00:11.3]} 42. d4 {[%clk 0:00:14.8]} 42... Nxd4 {[%clk 0:00:09.7]} 43.
Bg6 {[%clk 0:00:14.3]} 43... Nf3 {[%clk 0:00:07.4]} 44. Nf7+ {[%clk 0:00:14.1]}
44... Kg7 {[%clk 0:00:07]} 45. Bxh5+ {[%clk 0:00:14.2]} 45... Kf8 {[%clk
0:00:07.1]} 46. Bxf3 {[%clk 0:00:12.4]} 46... Qxf3 {[%clk 0:00:07.3]} 47. e6
{[%clk 0:00:13.3]} 47... Qf1+ {[%clk 0:00:06]} 48. Kh2 {[%clk 0:00:13.2]} 48...
Qf4+ {[%clk 0:00:06]} 49. Kh1 {[%clk 0:00:13.4]} 49... Qe4 {[%clk 0:00:05.6]}
50. Ng5 {[%clk 0:00:12.7]} 50... Qxc4 {[%clk 0:00:04.7]} 51. Rf2+ {[%clk
0:00:12.1]} 51... Ke8 {[%clk 0:00:05.1]} 52. Kg2 {[%clk 0:00:10.4]} 52... Qxa4
{[%clk 0:00:04.7]} 53. Kg3 {[%clk 0:00:09.9]} 53... Qb3+ {[%clk 0:00:04.4]} 54.
Rf3 {[%clk 0:00:09.2]} 54... Qd1 {[%clk 0:00:02.9]} 55. h4 {[%clk 0:00:08.7]}
55... Qe1+ {[%clk 0:00:03]} 56. Kg4 {[%clk 0:00:08.3]} 56... a4 {[%clk
0:00:03.6]} 57. h5 {[%clk 0:00:08.4]} 57... Qg1+ {[%clk 0:00:03.5]} 58. Rg3
{[%clk 0:00:07.9]} 58... Qd4+ {[%clk 0:00:03.3]} 59. Kf5 {[%clk 0:00:07.2]}
59... Qd5+ {[%clk 0:00:03.1]} 60. Kg4 {[%clk 0:00:06.2]} 60... Qd4+ {[%clk
0:00:03.1]} 61. Kf5 {[%clk 0:00:06.3]} 61... a3 {[%clk 0:00:03.2]} 62. h6 {[%clk
0:00:06]} 62... a2 {[%clk 0:00:02.8]} 63. Nh7 {[%clk 0:00:03.8]} 63... Qd5+
{[%clk 0:00:03]} 64. Kg6 {[%clk 0:00:03.3]} 64... Qe4+ {[%clk 0:00:02]} 65. Kg5
{[%clk 0:00:02.9]} 65... Qe5+ {[%clk 0:00:02]} 66. Kg6 {[%clk 0:00:02]} 66...
Qxg3+ {[%clk 0:00:02.2]} 0-1

[Event "*** Titled Tuesday Blitz"]
[Site "Chess.com"]
[Date "2020.12.01"]
[Round "1"]
[White "GM_LOADING"]
[Black "JiiHart"]
[Result "1-0"]
[WhiteElo "2486"]
[BlackElo "2091"]
[TimeControl "180+1"]
[EndTime "10:08:56 PST"]
[Termination "GM_LOADING won by resignation"]

1. Nf3 {[%clk 0:02:54.9]} 1... Nf6 {[%clk 0:02:59.1]} 2. g3 {[%clk 0:02:46.8]}
2... d5 {[%clk 0:02:58.4]} 3. Bg2 {[%clk 0:02:42.5]} 3... c5 {[%clk 0:02:58.3]}
4. O-O {[%clk 0:02:36.8]} 4... Nc6 {[%clk 0:02:58.1]} 5. d4 {[%clk 0:02:29.8]}
5... Bg4 {[%clk 0:02:51.2]} 6. c4 {[%clk 0:01:58]} 6... Bxf3 {[%clk 0:02:46.6]}
7. Bxf3 {[%clk 0:01:57.3]} 7... Nxd4 {[%clk 0:02:46.7]} 8. Bg2 {[%clk
0:01:56.6]} 8... e6 {[%clk 0:02:25.5]} 9. Nc3 {[%clk 0:01:45]} 9... Be7 {[%clk
0:02:12.1]} 10. cxd5 {[%clk 0:01:34]} 10... exd5 {[%clk 0:02:07.8]} 11. e3
{[%clk 0:01:32.6]} 11... Nc6 {[%clk 0:02:06.4]} 12. Nxd5 {[%clk 0:01:32]} 12...
Nxd5 {[%clk 0:02:00.3]} 13. Qxd5 {[%clk 0:01:32.9]} 13... Qxd5 {[%clk
0:01:59.1]} 14. Bxd5 {[%clk 0:01:32.5]} 14... Rc8 {[%clk 0:01:50.1]} 15. Bd2
{[%clk 0:01:29.2]} 15... O-O {[%clk 0:01:48.6]} 16. Bc3 {[%clk 0:01:24.5]} 16...
b6 {[%clk 0:01:44.8]} 17. Rfd1 {[%clk 0:01:20.9]} 17... Rfd8 {[%clk 0:01:41.2]}
18. a3 {[%clk 0:00:51.7]} 18... Kf8 {[%clk 0:01:31.8]} 19. Rd2 {[%clk
0:00:45.9]} 19... Bd6 {[%clk 0:01:08.7]} 20. Rad1 {[%clk 0:00:32.5]} 20... Be5
{[%clk 0:01:08.3]} 21. Bxc6 {[%clk 0:00:29.1]} 21... Rxd2 {[%clk 0:01:06]} 22.
Rxd2 {[%clk 0:00:26.9]} 22... Bxc3 {[%clk 0:01:04.2]} 23. bxc3 {[%clk
0:00:27.8]} 23... Rxc6 {[%clk 0:01:04.2]} 24. Rd7 {[%clk 0:00:28.7]} 24... a5
{[%clk 0:01:03.6]} 25. Rb7 {[%clk 0:00:28.9]} 25... Rd6 {[%clk 0:01:01.2]} 26.
c4 {[%clk 0:00:26]} 26... a4 {[%clk 0:00:52.4]} 27. Kg2 {[%clk 0:00:22.7]} 27...
Rd3 {[%clk 0:00:51.2]} 28. Rxb6 {[%clk 0:00:22.8]} 28... Rxa3 {[%clk 0:00:51.3]}
29. Rb5 {[%clk 0:00:22.1]} 29... Rc3 {[%clk 0:00:50.4]} 30. Rxc5 {[%clk
0:00:22.4]} 30... a3 {[%clk 0:00:50.9]} 31. Ra5 {[%clk 0:00:20.3]} 31... Rxc4
{[%clk 0:00:50.3]} 32. Rxa3 {[%clk 0:00:19.9]} 32... g6 {[%clk 0:00:50.1]} 33.
Ra7 {[%clk 0:00:19.5]} 33... Kg7 {[%clk 0:00:50.5]} 34. h3 {[%clk 0:00:20.2]}
34... Rb4 {[%clk 0:00:50.8]} 35. g4 {[%clk 0:00:20.6]} 35... Rc4 {[%clk
0:00:51.2]} 36. Kg3 {[%clk 0:00:21]} 36... h6 {[%clk 0:00:51.6]} 37. f4 {[%clk
0:00:17]} 37... Rc3 {[%clk 0:00:49.9]} 38. Re7 {[%clk 0:00:17]} 38... Rb3 {[%clk
0:00:49.2]} 39. Re4 {[%clk 0:00:16.9]} 39... Kf6 {[%clk 0:00:48.2]} 40. h4
{[%clk 0:00:17]} 40... Ra3 {[%clk 0:00:47.4]} 41. g5+ {[%clk 0:00:17.3]} 41...
hxg5 {[%clk 0:00:45.5]} 42. hxg5+ {[%clk 0:00:16.9]} 42... Kg7 {[%clk
0:00:44.8]} 43. Re5 {[%clk 0:00:17.6]} 43... Rb3 {[%clk 0:00:45]} 44. Kf3 {[%clk
0:00:17.8]} 44... Ra3 {[%clk 0:00:44.6]} 45. Kg4 {[%clk 0:00:18.4]} 45... Ra1
{[%clk 0:00:42.6]} 46. Rc5 {[%clk 0:00:17.9]} 46... Rg1+ {[%clk 0:00:41.9]} 47.
Kf3 {[%clk 0:00:17.9]} 47... Rd1 {[%clk 0:00:40.2]} 48. e4 {[%clk 0:00:18.1]}
48... Rd3+ {[%clk 0:00:40]} 49. Kg4 {[%clk 0:00:18.4]} 49... Rd4 {[%clk
0:00:38.9]} 50. Re5 {[%clk 0:00:18.3]} 50... Ra4 {[%clk 0:00:38.1]} 51. Re7
{[%clk 0:00:16.7]} 51... Rb4 {[%clk 0:00:37.9]} 52. e5 {[%clk 0:00:17.1]} 52...
Ra4 {[%clk 0:00:36.9]} 53. e6 {[%clk 0:00:17.2]} 53... Ra1 {[%clk 0:00:33.4]}
54. Rxf7+ {[%clk 0:00:17.5]} 54... Kg8 {[%clk 0:00:32.6]} 55. Kf3 {[%clk
0:00:17.1]} 55... Ra6 {[%clk 0:00:28.2]} 56. Rf6 {[%clk 0:00:13.9]} 56... Kg7
{[%clk 0:00:27.9]} 57. Kg4 {[%clk 0:00:14.1]} 57... Ra7 {[%clk 0:00:26.4]} 58.
Kf3 {[%clk 0:00:13]} 58... Re7 {[%clk 0:00:24.9]} 59. Ke4 {[%clk 0:00:13]} 59...
Ra7 {[%clk 0:00:24.3]} 60. Rf7+ {[%clk 0:00:10.3]} 60... Rxf7 {[%clk 0:00:22.8]}
61. exf7 {[%clk 0:00:11.2]} 61... Kxf7 {[%clk 0:00:23.6]} 62. Kd5 {[%clk
0:00:11.9]} 62... Ke7 {[%clk 0:00:19.7]} 63. Ke5 {[%clk 0:00:12.2]} 63... Kf7
{[%clk 0:00:19.1]} 64. Kd6 {[%clk 0:00:12.8]} 64... Kf8 {[%clk 0:00:17.6]} 65.
Ke6 {[%clk 0:00:12.9]} 65... Kg7 {[%clk 0:00:17.4]} 66. Ke7 {[%clk 0:00:13.5]}
66... Kg8 {[%clk 0:00:15.2]} 67. Kf6 {[%clk 0:00:13.8]} 67... Kh7 {[%clk
0:00:14.8]} 68. Kf7 {[%clk 0:00:14.3]} 68... Kh8 {[%clk 0:00:14.6]} 69. Kxg6
{[%clk 0:00:14.7]} 69... Kg8 {[%clk 0:00:15.4]} 70. Kh6 {[%clk 0:00:14.4]} 70...
Kf7 {[%clk 0:00:15.3]} 71. Kh7 {[%clk 0:00:14.4]} 71... Ke6 {[%clk 0:00:14.4]}
72. g6 {[%clk 0:00:15]} 72... Kf5 {[%clk 0:00:14.9]} 73. g7 {[%clk 0:00:15.5]}
73... Kxf4 {[%clk 0:00:15.4]} 74. g8=Q {[%clk 0:00:16.2]} 74... Ke5 {[%clk
0:00:15.8]} 75. Qg6 {[%clk 0:00:16.3]} 75... Kd5 {[%clk 0:00:15.4]} 76. Qf5+
{[%clk 0:00:15.8]} 76... Kd6 {[%clk 0:00:15.2]} 77. Kg6 {[%clk 0:00:16.7]} 1-0

[Event "*** Titled Tuesday Blitz"]
[Site "Chess.com"]
[Date "2020.12.01"]
[Round "1"]
[White "Gogolev_Artemy"]
[Black "Man-Chuk"]
[Result "0-1"]
[WhiteElo "2429"]
[BlackElo "2861"]
[TimeControl "180+1"]
[EndTime "10:09:13 PST"]
[Termination "Man-Chuk won on time"]

1. c4 {[%clk 0:02:57]} 1... e5 {[%clk 0:02:54.2]} 2. Nf3 {[%clk 0:02:55.1]} 2...
Nc6 {[%clk 0:02:40.5]} 3. d4 {[%clk 0:02:53.7]} 3... exd4 {[%clk 0:02:38.6]} 4.
Nxd4 {[%clk 0:02:54.6]} 4... Bb4+ {[%clk 0:02:36.6]} 5. Bd2 {[%clk 0:02:53.9]}
5... Bxd2+ {[%clk 0:02:20.6]} 6. Qxd2 {[%clk 0:02:52.1]} 6... Qf6 {[%clk
0:02:21.1]} 7. e3 {[%clk 0:02:49]} 7... Nge7 {[%clk 0:02:18.7]} 8. Nc3 {[%clk
0:02:46.4]} 8... Nxd4 {[%clk 0:01:54.9]} 9. Qxd4 {[%clk 0:02:45.2]} 9... Qxd4
{[%clk 0:01:51.6]} 10. exd4 {[%clk 0:02:46.1]} 10... d6 {[%clk 0:01:42.9]} 11.
O-O-O {[%clk 0:02:34.8]} 11... Be6 {[%clk 0:01:38.5]} 12. Bd3 {[%clk 0:02:15.3]}
12... O-O-O {[%clk 0:01:32]} 13. Rhe1 {[%clk 0:02:07.8]} 13... d5 {[%clk
0:01:29]} 14. c5 {[%clk 0:02:05.7]} 14... Rhe8 {[%clk 0:01:21.6]} 15. Re3 {[%clk
0:01:56.7]} 15... c6 {[%clk 0:01:07.5]} 16. Rde1 {[%clk 0:01:54.5]} 16... Kd7
{[%clk 0:01:06.5]} 17. Kd2 {[%clk 0:01:44.8]} 17... h6 {[%clk 0:01:00.6]} 18. h4
{[%clk 0:01:30]} 18... b6 {[%clk 0:01:00.5]} 19. b4 {[%clk 0:01:28.2]} 19...
bxc5 {[%clk 0:00:55.7]} 20. bxc5 {[%clk 0:01:27.9]} 20... Rb8 {[%clk 0:00:55.9]}
21. Rb1 {[%clk 0:01:07.7]} 21... Rxb1 {[%clk 0:00:52.2]} 22. Nxb1 {[%clk
0:01:06.7]} 22... Rb8 {[%clk 0:00:51.2]} 23. Kc3 {[%clk 0:01:05.2]} 23... a5
{[%clk 0:00:38.6]} 24. Nd2 {[%clk 0:00:55.2]} 24... f6 {[%clk 0:00:37.9]} 25.
Rg3 {[%clk 0:00:51.3]} 25... g5 {[%clk 0:00:37.9]} 26. hxg5 {[%clk 0:00:51.2]}
26... hxg5 {[%clk 0:00:38.8]} 27. Rf3 {[%clk 0:00:49.9]} 27... f5 {[%clk
0:00:35.2]} 28. Rh3 {[%clk 0:00:46.3]} 28... g4 {[%clk 0:00:21.7]} 29. Rh7
{[%clk 0:00:44]} 29... Rf8 {[%clk 0:00:16.9]} 30. f3 {[%clk 0:00:27.5]} 30... f4
{[%clk 0:00:12.4]} 31. fxg4 {[%clk 0:00:26.4]} 31... Bxg4 {[%clk 0:00:13.3]} 32.
Rg7 {[%clk 0:00:23.1]} 32... Rg8 {[%clk 0:00:12.5]} 33. Rxg8 {[%clk 0:00:22.6]}
33... Nxg8 {[%clk 0:00:13.4]} 34. a4 {[%clk 0:00:20.9]} 34... Bd1 {[%clk
0:00:11.4]} 35. Bc2 {[%clk 0:00:19.8]} 35... Bxc2 {[%clk 0:00:11.6]} 36. Kxc2
{[%clk 0:00:20.7]} 36... Nh6 {[%clk 0:00:10.8]} 37. Kd3 {[%clk 0:00:19.3]} 37...
Nf5 {[%clk 0:00:10.4]} 38. Nf3 {[%clk 0:00:19]} 38... Kc7 {[%clk 0:00:05.5]} 39.
Kd2 {[%clk 0:00:16.6]} 39... Kd7 {[%clk 0:00:05.1]} 40. Kd3 {[%clk 0:00:16.5]}
40... Kc7 {[%clk 0:00:05.7]} 41. Kd2 {[%clk 0:00:16.4]} 41... Ne3 {[%clk
0:00:05.6]} 42. g3 {[%clk 0:00:15.7]} 42... Nf1+ {[%clk 0:00:05.7]} 43. Ke2
{[%clk 0:00:15.1]} 43... Nxg3+ {[%clk 0:00:06.2]} 44. Kf2 {[%clk 0:00:15.5]}
44... Nf5 {[%clk 0:00:06.8]} 45. Kg2 {[%clk 0:00:14.8]} 45... Kd8 {[%clk
0:00:07.2]} 46. Kh3 {[%clk 0:00:15]} 46... Ne3 {[%clk 0:00:07.7]} 47. Kh4 {[%clk
0:00:14.7]} 47... Nc4 {[%clk 0:00:08]} 48. Kg5 {[%clk 0:00:14.7]} 48... Nb2
{[%clk 0:00:08.5]} 49. Kxf4 {[%clk 0:00:15]} 49... Nxa4 {[%clk 0:00:09.1]} 50.
Ne5 {[%clk 0:00:14.7]} 50... Kc7 {[%clk 0:00:08.9]} 51. Ke3 {[%clk 0:00:14.4]}
51... Nc3 {[%clk 0:00:07]} 52. Kd3 {[%clk 0:00:14.5]} 52... Ne4 {[%clk
0:00:05.1]} 53. Kc2 {[%clk 0:00:14.3]} 53... a4 {[%clk 0:00:03.3]} 54. Kb2
{[%clk 0:00:14]} 54... Nd2 {[%clk 0:00:03.8]} 55. Ka3 {[%clk 0:00:13]} 55... Nb3
{[%clk 0:00:01.9]} 56. Nf3 {[%clk 0:00:12.7]} 56... Na5 {[%clk 0:00:01.2]} 57.
Kxa4 {[%clk 0:00:12.9]} 57... Nc4 {[%clk 0:00:02.1]} 58. Kb4 {[%clk 0:00:13.1]}
58... Kd7 {[%clk 0:00:02.7]} 59. Kc3 {[%clk 0:00:13.3]} 59... Ke6 {[%clk
0:00:03.4]} 60. Kd3 {[%clk 0:00:13.4]} 60... Kf5 {[%clk 0:00:04.1]} 61. Kc3
{[%clk 0:00:11.8]} 61... Ke4 {[%clk 0:00:04.2]} 62. Ng5+ {[%clk 0:00:11.1]}
62... Ke3 {[%clk 0:00:04.9]} 63. Nf7 {[%clk 0:00:11.3]} 63... Na3 {[%clk
0:00:03.1]} 64. Nd8 {[%clk 0:00:11.3]} 64... Nb5+ {[%clk 0:00:03.6]} 65. Kb3
{[%clk 0:00:10.6]} 65... Nxd4+ {[%clk 0:00:04.5]} 66. Kb4 {[%clk 0:00:10.4]}
66... Kd3 {[%clk 0:00:04.1]} 67. Ka5 {[%clk 0:00:09.1]} 67... Nb3+ {[%clk
0:00:02.7]} 68. Kb6 {[%clk 0:00:09.1]} 68... Kc4 {[%clk 0:00:03.3]} 69. Kxc6
{[%clk 0:00:09.2]} 69... d4 {[%clk 0:00:03.1]} 70. Ne6 {[%clk 0:00:08.4]} 70...
d3 {[%clk 0:00:03.4]} 71. Nf4 {[%clk 0:00:03]} 71... d2 {[%clk 0:00:03.8]} 72.
Ng2 {[%clk 0:00:03.2]} 72... Kd4 {[%clk 0:00:04]} 0-1

[Event "*** Titled Tuesday Blitz"]
[Site "Chess.com"]
[Date "2020.12.01"]
[Round "1"]
[White "KononenkoD"]
[Black "Markov_Mikhail"]
[Result "1/2-1/2"]
[WhiteElo "2370"]
[BlackElo "2701"]
[TimeControl "180+1"]
[EndTime "10:09:16 PST"]
[Termination "Game drawn by repetition"]

1. d4 {[%clk 0:02:58.8]} 1... Nf6 {[%clk 0:02:57]} 2. c4 {[%clk 0:02:54.1]} 2...
e6 {[%clk 0:02:56]} 3. g3 {[%clk 0:02:53.6]} 3... d5 {[%clk 0:02:56]} 4. Nf3
{[%clk 0:02:53.3]} 4... Be7 {[%clk 0:02:54.8]} 5. Bg2 {[%clk 0:02:53.4]} 5...
O-O {[%clk 0:02:55.5]} 6. O-O {[%clk 0:02:53.7]} 6... Nbd7 {[%clk 0:02:55.9]} 7.
Qc2 {[%clk 0:02:52.2]} 7... c5 {[%clk 0:02:56.4]} 8. Rd1 {[%clk 0:02:43.2]} 8...
b6 {[%clk 0:02:56.2]} 9. cxd5 {[%clk 0:02:39.9]} 9... exd5 {[%clk 0:02:56]} 10.
Nc3 {[%clk 0:02:31.6]} 10... Bb7 {[%clk 0:02:55.9]} 11. Bf4 {[%clk 0:02:30.1]}
11... a6 {[%clk 0:02:55.6]} 12. Rac1 {[%clk 0:02:28.3]} 12... Rc8 {[%clk
0:02:56.1]} 13. Qb1 {[%clk 0:02:26.7]} 13... Re8 {[%clk 0:02:54.9]} 14. a3
{[%clk 0:02:09.3]} 14... c4 {[%clk 0:02:49.7]} 15. Ne5 {[%clk 0:02:08.2]} 15...
b5 {[%clk 0:02:45.1]} 16. e4 {[%clk 0:02:05.5]} 16... dxe4 {[%clk 0:02:43.5]}
17. Nxe4 {[%clk 0:02:03.2]} 17... Nxe4 {[%clk 0:02:44]} 18. Bxe4 {[%clk
0:02:03.1]} 18... Bxe4 {[%clk 0:02:44.9]} 19. Qxe4 {[%clk 0:02:03.4]} 19... Nf6
{[%clk 0:02:45.7]} 20. Qf3 {[%clk 0:02:00.1]} 20... Qd5 {[%clk 0:02:46.2]} 21.
Qe2 {[%clk 0:01:50.1]} 21... a5 {[%clk 0:02:42.2]} 22. h4 {[%clk 0:01:45.3]}
22... h6 {[%clk 0:02:40.1]} 23. Rc2 {[%clk 0:01:40.5]} 23... Bd6 {[%clk
0:02:32.8]} 24. Qd2 {[%clk 0:01:37.2]} 24... b4 {[%clk 0:02:29.2]} 25. axb4
{[%clk 0:01:34.6]} 25... axb4 {[%clk 0:02:28.1]} 26. Qc1 {[%clk 0:01:33.1]}
26... Nh5 {[%clk 0:01:55.9]} 27. Rxc4 {[%clk 0:01:22.1]} 27... Rxc4 {[%clk
0:01:55.4]} 28. Qxc4 {[%clk 0:01:19.2]} 28... Qxc4 {[%clk 0:01:55.9]} 29. Nxc4
{[%clk 0:01:18.6]} 29... Bxf4 {[%clk 0:01:56.8]} 30. gxf4 {[%clk 0:01:16.3]}
30... Nxf4 {[%clk 0:01:57.7]} 31. d5 {[%clk 0:01:12.5]} 31... Rd8 {[%clk
0:01:57.2]} 32. d6 {[%clk 0:01:11.9]} 32... f6 {[%clk 0:01:56.8]} 33. Kf1 {[%clk
0:01:04.3]} 33... Kf7 {[%clk 0:01:56.1]} 34. Rd4 {[%clk 0:01:04]} 34... Ne6
{[%clk 0:01:55.6]} 35. Rd5 {[%clk 0:01:03.2]} 35... Rc8 {[%clk 0:01:48]} 36. b3
{[%clk 0:01:02.5]} 36... Rc5 {[%clk 0:01:42.2]} 37. Rd1 {[%clk 0:00:55.5]} 37...
Ke8 {[%clk 0:01:42.4]} 38. d7+ {[%clk 0:00:49]} 38... Kd8 {[%clk 0:01:41.9]} 39.
Nd6 {[%clk 0:00:49.4]} 39... Kxd7 {[%clk 0:01:20.8]} 40. Ne4+ {[%clk 0:00:49.5]}
40... Kc6 {[%clk 0:01:21.3]} 41. Nxc5 {[%clk 0:00:49.1]} 41... Nxc5 {[%clk
0:01:22.2]} 42. Rb1 {[%clk 0:00:43.5]} 42... h5 {[%clk 0:01:20]} 43. Ke2 {[%clk
0:00:42.5]} 43... Kd5 {[%clk 0:01:20.2]} 44. Ke3 {[%clk 0:00:41.6]} 44... g5
{[%clk 0:01:19.5]} 45. hxg5 {[%clk 0:00:40.5]} 45... fxg5 {[%clk 0:01:20.4]} 46.
Rh1 {[%clk 0:00:40]} 46... h4 {[%clk 0:01:19.8]} 47. Rg1 {[%clk 0:00:39.3]}
47... Ne6 {[%clk 0:01:09.9]} 48. Rd1+ {[%clk 0:00:36.8]} 48... Ke5 {[%clk
0:01:10.3]} 49. Rg1 {[%clk 0:00:31.9]} 49... Kf5 {[%clk 0:01:07.1]} 50. f3
{[%clk 0:00:30.7]} 50... h3 {[%clk 0:01:04.7]} 51. Rh1 {[%clk 0:00:27.9]} 51...
Nf4 {[%clk 0:01:04.8]} 52. Kf2 {[%clk 0:00:25.9]} 52... Ke5 {[%clk 0:01:02.1]}
53. Rd1 {[%clk 0:00:20.7]} 53... Ne6 {[%clk 0:01:00]} 54. Kg3 {[%clk 0:00:19.9]}
54... Nd4 {[%clk 0:00:59.5]} 55. Rd3 {[%clk 0:00:20]} 55... Ne6 {[%clk
0:00:42.4]} 56. Rd7 {[%clk 0:00:17.2]} 56... Nd4 {[%clk 0:00:38.7]} 57. Rb7
{[%clk 0:00:16.7]} 57... Nxb3 {[%clk 0:00:38.7]} 58. Rxb4 {[%clk 0:00:16.9]}
58... Nd4 {[%clk 0:00:39.1]} 59. Ra4 {[%clk 0:00:16.4]} 59... Ne6 {[%clk
0:00:25.2]} 60. Kxh3 {[%clk 0:00:15.3]} 60... Kf5 {[%clk 0:00:26.1]} 61. Ra5+
{[%clk 0:00:14.7]} 61... Kf4 {[%clk 0:00:25.5]} 62. Kg2 {[%clk 0:00:15]} 62...
Nd4 {[%clk 0:00:20.3]} 63. Ra4 {[%clk 0:00:15.1]} 63... Ke3 {[%clk 0:00:20.9]}
64. Kg3 {[%clk 0:00:13.2]} 64... Kd3 {[%clk 0:00:18.7]} 65. Kg4 {[%clk
0:00:12.5]} 65... Ke3 {[%clk 0:00:19.4]} 66. Ra3+ {[%clk 0:00:11.8]} 66... Ke2
{[%clk 0:00:19.5]} 67. Ra4 {[%clk 0:00:11]} 67... Ke3 {[%clk 0:00:20]} 68. Ra2
{[%clk 0:00:10.7]} 68... Kd3 {[%clk 0:00:19]} 69. Rb2 {[%clk 0:00:08.6]} 69...
Ke3 {[%clk 0:00:19.5]} 70. Ra2 {[%clk 0:00:08.7]} 70... Kd3 {[%clk 0:00:20.1]}
71. Ra1 {[%clk 0:00:08.6]} 71... Ke3 {[%clk 0:00:20.5]} 72. Re1+ {[%clk
0:00:08.9]} 72... Kf2 {[%clk 0:00:20.9]} 73. Re7 {[%clk 0:00:08.5]} 73... Kg2
{[%clk 0:00:20.3]} 74. Re4 {[%clk 0:00:08.3]} 74... Nc6 {[%clk 0:00:16.4]} 75.
Ra4 {[%clk 0:00:06.1]} 75... Ne5+ {[%clk 0:00:15.2]} 76. Kxg5 {[%clk 0:00:06.3]}
76... Nxf3+ {[%clk 0:00:15.8]} 77. Kf4 {[%clk 0:00:06.6]} 77... Nh2 {[%clk
0:00:16.3]} 78. Ra2+ {[%clk 0:00:06.8]} 78... Kg1 {[%clk 0:00:15.4]} 79. Kg3
{[%clk 0:00:06.8]} 79... Nf1+ {[%clk 0:00:15.9]} 80. Kh3 {[%clk 0:00:07]} 80...
Ne3 {[%clk 0:00:14.3]} 81. Kg3 {[%clk 0:00:06.8]} 81... Nf1+ {[%clk 0:00:13.3]}
82. Kf3 {[%clk 0:00:06.9]} 82... Nh2+ {[%clk 0:00:13.5]} 83. Kg3 {[%clk
0:00:07.2]} 83... Nf1+ {[%clk 0:00:13.9]} 1/2-1/2